bitfinex-derivatives/quotes_SOLF0:USTF0_20250819
["timestamp","ask_amount","ask_price","bid_price","bid_amount"]
[1755630627447,3.02,176.25,176.15,1.17]
[1755630627638,3.98445608,176.24,176.15,1.17]
[1755630627838,3.98445608,176.23,176.15,1.17]
[1755630628039,3.98445608,176.22,176.15,1.17]
[1755630628247,3.02,176.25,176.15,1.17]
[1755630628543,2.94,176.23,176.11,8.85293444]
[1755630628743,3.98598065,176.22,176.11,1.19]
[1755630628944,6.92598065,176.21,176.11,1.19]
[1755630629144,3.9851934,176.2,176.11,1.19]
[1755630629342,2.94,176.21,176.11,1.19]
[1755630629545,3.98392294,176.2,176.11,1.19]
[1755630629746,2.94,176.21,176.11,1.19]
[1755630630040,3.98273046,176.2,176.11,1.19]
[1755630630245,2.94,176.21,176.11,1.19]
[1755630630444,2.94,176.19,176.08,149.3]
[1755630631047,3.98053441,176.18,176.08,149.3]
[1755630631246,2.94,176.19,176.08,149.3]
[1755630631645,2.94,176.19,176.07,7.66293444]
[1755630631842,2.94,176.19,176.05,381.32]
[1755630631843,2.94,176.17,176.05,381.32]
[1755630632041,3.9787396,176.16,176.05,381.32]
[1755630632249,2.94,176.15,176.05,381.32]
[1755630632644,2.94,176.15,176.02,1.19]
[1755630632844,2.94,176.13,175.98,1.19]
[1755630633043,3.97596911,176.12,175.98,1.19]
[1755630633258,2.94,176.11,175.99,5.6823]
[1755630633949,2.94,176.11,175.96,7.66293444]
[1755630633950,2.94,176.11,175.96,8.85293444]
[1755630634142,2.94,176.09,175.96,1.19]
[1755630634345,3.97199997,176.08,175.96,1.19]
[1755630634645,2.94,176.09,175.96,1.19]
[1755630634646,3.97199997,176.07,175.96,1.19]
[1755630634845,2.94,176.09,175.96,1.19]
[1755630635246,3.96776366,176.08,175.96,1.19]
[1755630635439,2.94,176.09,175.96,1.19]
[1755630635638,2.94,176.14,176.0,7.66293444]
[1755630635841,2.94,176.14,176.01,1.19]
[1755630636143,2.94,176.12,175.96,7.66293444]
[1755630636343,2.94,176.1,175.97,1.19]
[1755630637148,2.94,176.1,175.98,5.6825]
[1755630637349,2.94,176.1,175.97,1.19]
[1755630637549,2.94,176.1,175.97,6.8729]
[1755630637855,2.94,176.1,175.97,1.19]
[1755630638246,2.94,176.1,175.97,6.8728]
[1755630638848,2.94,176.1,175.97,1.19]
[1755630639051,2.94,176.1,176.01,1.19]
[1755630640742,2.94,176.14,176.01,1.19]
[1755630641244,2.94,176.14,176.04,1.19]
[1755630642049,3.95862162,176.13,175.99,1.19]
[1755630642250,2.94,176.14,175.99,1.19]
[1755630642451,2.94,176.12,175.99,1.19]
[1755630642855,2.94,176.12,175.96,389.34293444]
[1755630643054,6.89783788,176.11,175.97,1.19]
[1755630643354,2.94,176.11,175.97,1.19]
[1755630645053,2.94,176.11,175.97,6.8727]
[1755630645249,2.94,176.11,175.97,1.19]
[1755630645957,2.94,176.11,175.98,5.6825]
[1755630646857,2.94,176.11,175.99,6.8723]
[1755630647153,2.94,176.11,176.0,7.66293444]
[1755630647457,223.15327266,176.15,176.05,1.19]
[1755630647959,223.15327266,176.15,176.05,6.8703]
[1755630648457,223.15327266,176.15,176.05,1.19]
[1755630650654,381.48,176.18,176.05,1.19]
[1755630650860,381.48,176.18,176.05,5.6801]
[1755630651060,381.48,176.18,176.06,1.19]
[1755630651354,2.94,176.2,176.06,1.19]
[1755630652157,2.94,176.18,176.06,1.19]
[1755630652351,2.94,176.18,176.06,6.8698]
[1755630653860,2.94,176.18,176.06,1.19]
[1755630655763,2.94,176.16,176.06,1.19]
[1755630656958,7.66293444,176.24,176.05,1.19]
[1755630657164,2.94,176.21,176.09,1.19]
[1755630658063,2.94,176.21,176.1,5.6786]
[1755630658463,3.12,176.27,176.13,1.19]
[1755630658767,3.12,176.25,176.15,1.19]
[1755630659067,3.12,176.25,176.12,7.66293444]
[1755630659260,3.97289968,176.24,176.12,7.66293444]
[1755630659459,3.12,176.23,176.12,7.66293444]
[1755630660465,3.12,176.23,176.13,1.19]
[1755630660766,3.12,176.23,176.13,6.8677]
[1755630660972,3.12,176.23,176.13,1.19]
[1755630661261,3.12,176.21,176.09,1.19]
[1755630662466,3.12,176.21,176.09,6.8689]
[1755630663264,3.12,176.21,176.1,5.6787]
[1755630663469,3.12,176.27,176.13,1.19]
[1755630663668,3.97969531,176.26,176.13,1.19]
[1755630663870,3.12,176.27,176.13,1.19]
[1755630664066,3.12,176.25,176.13,1.19]
[1755630664370,389.40293444,176.28,176.13,1.19]
[1755630664371,3.12,176.23,176.13,1.19]
[1755630665170,3.12,176.21,176.09,1.19]
[1755630666169,3.98047345,176.2,176.09,1.19]
[1755630666469,3.12,176.21,176.09,1.19]
[1755630666665,3.98058617,176.2,176.07,381.62]
[1755630666871,7.10039601,176.19,176.07,381.62]
[1755630667071,3.12,176.19,176.08,1.19]
[1755630668367,3.12,176.17,176.08,1.19]
[1755630669574,3.12,176.15,176.05,149.02]
[1755630669776,3.12,176.15,176.03,1.19]
[1755630669777,3.98260861,176.14,176.03,1.19]
[1755630670081,7.10245819,176.13,176.0,7.66293444]
[1755630670277,3.12,176.13,176.0,7.66293444]
[1755630670774,3.12,176.13,175.99,1.19]
[1755630670979,3.12,176.11,175.99,1.19]
[1755630672273,3.98748232,176.1,175.99,1.19]
[1755630672479,7.66293444,176.13,175.99,1.19]
[1755630672480,7.10744649,176.09,175.99,1.19]
[1755630672672,3.12,176.09,175.99,1.19]
[1755630672868,3.12,176.09,175.97,381.6]
[1755630673068,3.98704527,176.08,175.97,381.6]
[1755630673277,3.12,176.07,175.97,381.6]
[1755630673680,3.12,176.07,175.95,150.13]
[1755630674377,3.12,176.05,175.95,1.19]
[1755630674681,3.12,176.05,175.94,151.72368102]
[1755630675478,3.98126716,176.04,175.94,151.72368102]
[1755630675779,3.12,176.03,175.94,151.72368102]
[1755630677083,3.12,176.03,175.88,1.19]
[1755630677274,3.12,176.01,175.88,1.19]
[1755630678082,3.97508568,176.0,175.88,1.19]
[1755630678377,3.12,175.99,175.88,1.19]
[1755630682077,3.97546641,175.98,175.84,148.94]
[1755630682276,3.97308343,175.97,175.84,148.94]
[1755630682475,3.12,175.96,175.83,1.19]
[1755630683385,3.97023015,175.95,175.79,1.19]
[1755630683587,3.12,175.95,175.79,1.19]
[1755630684587,3.12,175.95,175.8,1.19]
[1755630685585,3.12,175.95,175.82,1.19]
[1755630686081,3.12,175.95,175.8,5.6883]
[1755630686386,3.12,175.95,175.81,1.19]
[1755630688790,3.12,175.95,175.83,1.2]
[1755630689193,3.12,175.95,175.84,5.687]
[1755630689386,3.12,175.95,175.85,1.2]
[1755630694795,3.12,175.95,175.86,5.6862]
[1755630694992,3.04,176.0,175.85,1.2]
[1755630696698,3.04,176.0,175.87,5.6861]
[1755630696999,3.04,176.0,175.88,1.19]
[1755630697390,3.04,176.0,175.88,7.66293444]
[1755630697595,3.04,176.0,175.89,1.19]
[1755630697794,3.04,176.0,175.9,5.6851]
[1755630698096,3.04,176.0,175.91,1.19]
[1755630700194,3.04,176.0,175.85,7.66293444]
[1755630700393,3.04,176.0,175.87,1.19]
[1755630703698,3.04,175.98,175.87,1.19]
[1755630704590,3.04,175.98,175.83,1.19]
[1755630705394,3.95848049,175.97,175.83,1.19]
[1755630705600,3.04,175.96,175.83,1.19]
[1755630707200,3.04,175.96,175.85,1.19]
[1755630709203,3.9683546,175.95,175.85,1.19]
[1755630709402,3.04,175.96,175.85,1.19]
[1755630709904,3.04,175.96,175.85,5.6867]
[1755630710105,13.79574399,176.02,175.86,1.19]
[1755630710402,7.01334409,176.01,175.88,5.6856]
[1755630710603,3.97334409,176.0,175.89,1.19]
[1755630711104,3.97334409,176.0,175.9,1.19]
[1755630711293,3.04,176.01,175.9,1.19]
[1755630712497,530.52,176.04,175.9,1.19]
[1755630712702,3.98247793,176.03,175.94,1.19]
[1755630712906,530.52,176.04,175.94,1.19]
[1755630713095,3.98252941,176.03,175.94,1.19]
[1755630713406,3.98252941,176.02,175.94,1.19]
[1755630713607,3.04,176.05,175.94,1.19]
[1755630714204,3.04,176.05,175.95,1.19]
[1755630714400,154.75280955,176.11,175.95,1.19]
[1755630714596,3.04,176.08,175.97,8.85293444]
[1755630714908,3.04,176.08,175.98,1.19]
[1755630715604,151.66,176.11,175.99,5.6821]
[1755630715801,3.04,176.15,176.05,7.66293444]
[1755630715996,3.99404403,176.14,176.06,1.19]
[1755630716199,3.04,176.15,176.06,1.19]
[1755630716400,3.99214543,176.14,176.06,1.19]
[1755630716606,3.04,176.19,176.06,1.19]
[1755630716807,3.99259433,176.18,176.06,1.19]
[1755630717108,3.99259433,176.17,176.08,1.19]
[1755630717295,3.04,176.19,176.08,1.19]
[1755630717500,3.98963708,176.18,176.09,1.19]
[1755630717696,3.04,176.19,176.09,1.19]
[1755630717904,3.98966149,176.18,176.04,1.19]
[1755630718102,7.02966149,176.17,176.04,1.19]
[1755630718406,3.98966149,176.16,176.04,6.8704]
[1755630718708,3.04,176.17,176.05,1.19]
[1755630718901,3.18,176.15,176.05,1.19]
[1755630719099,3.9852493,176.14,176.05,1.19]
[1755630719309,3.18,176.15,176.05,1.19]
[1755630719503,3.18,176.15,176.05,6.8703]
[1755630719904,3.18,176.15,176.05,1.19]
[1755630720800,377.09334606,176.25,176.02,150.29029528]
[1755630720801,3.18,176.22,176.13,1.19]
[1755630721602,219.13777406,176.25,176.16,1.19]
[1755630721910,219.13777406,176.25,176.16,8.85293444]
[1755630722112,219.13777406,176.25,176.16,14.52953444]
[1755630722308,219.13777406,176.25,176.16,7.66293444]
[1755630722500,219.13777406,176.25,176.17,1.19]
[1755630723302,219.13777406,176.25,176.13,383.03]
[1755630723508,222.31777406,176.25,176.13,383.03]
[1755630723812,222.31777406,176.25,176.13,388.7077]
[1755630724700,222.31777406,176.25,176.13,383.03]
[1755630725913,3.18,176.24,176.13,383.03]
[1755630726211,3.18,176.24,176.09,1.19]
[1755630727615,3.18,176.24,176.12,1.19]
[1755630728505,3.18,176.24,176.15,7.66293444]
[1755630728710,3.18,176.24,176.16,1.19]
[1755630729714,219.13777406,176.25,176.16,6.8667]
[1755630730011,219.13777406,176.25,176.16,1.19]
[1755630730513,3.18,176.28,176.16,1.19]
[1755630731010,3.18,176.28,176.17,5.6762]
[1755630731221,3.18,176.28,176.16,1.19]
[1755630731706,3.18,176.28,176.17,5.6764]
[1755630732905,3.18,176.28,176.18,5.6761]
[1755630733310,3.18,176.28,176.19,1.19]
[1755630733515,3.18,176.28,176.19,14.52873444]
[1755630734114,3.18,176.36,176.23,8.85293444]
[1755630734720,3.18,176.36,176.23,7.66293444]
[1755630735011,3.18,176.34,176.16,381.54]
[1755630735210,3.18,176.32,176.16,381.54]
[1755630735615,3.18,176.32,176.18,7.66293444]
[1755630735816,3.18,176.32,176.17,1.19]
[1755630736117,3.18,176.3,176.13,1.19]
[1755630736509,3.18,176.28,176.13,1.19]
[1755630736715,3.93877601,176.27,176.13,1.19]
[1755630736915,3.93854878,176.26,176.1,7.66293444]
[1755630737110,3.18,176.24,176.1,7.66293444]
[1755630737912,3.18,176.24,176.11,1.19]
[1755630738311,3.18,176.24,176.12,5.678]
[1755630738514,3.18,176.24,176.11,1.19]
[1755630740822,3.18,176.24,176.11,6.8683]
[1755630741121,3.18,176.24,176.11,1.19]
[1755630741724,3.18,176.24,176.08,149.35]
[1755630741921,3.18,176.24,176.08,1.19]
[1755630743319,3.94236018,176.23,176.08,1.19]
[1755630743525,3.18,176.22,176.08,1.19]
[1755630743731,3.18,176.2,176.06,381.54]
[1755630744824,3.94357103,176.19,176.03,1.19]
[1755630745024,3.18,176.18,176.03,1.19]
[1755630746323,7.66293444,176.17,176.03,1.19]
[1755630746620,7.12645052,176.16,176.03,1.19]
[1755630746821,3.18,176.15,176.03,1.19]
[1755630748722,3.18,176.15,176.03,6.8709]
[1755630749030,3.18,176.15,176.03,1.19]
[1755630749527,3.18,176.15,176.04,1.19]
[1755630751832,3.1,176.19,176.09,7.66293444]
[1755630752028,3.1,176.19,176.1,1.19]
[1755630752227,3.1,176.23,176.11,5.6783]
[1755630752427,3.1,176.23,176.12,1.19]
[1755630752732,3.1,176.23,176.13,7.66293444]
[1755630753029,3.1,176.23,176.14,1.19]
[1755630753233,3.1,176.32,176.17,1.19]
[1755630753425,3.1,176.3,176.17,1.19]
[1755630753622,3.97153913,176.29,176.17,1.19]
[1755630753826,3.97153913,176.29,176.18,5.6761]
[1755630754128,3.1,176.3,176.18,5.6761]
[1755630754329,3.1,176.3,176.18,1.19]
[1755630754719,3.1,176.28,176.18,1.19]
[1755630755122,3.98270343,176.27,176.18,1.19]
[1755630755323,3.1,176.28,176.18,1.19]
[1755630755520,3.98273769,176.27,176.18,1.19]
[1755630755729,3.1,176.25,176.09,7.66293444]
[1755630755940,3.98180687,176.24,176.1,1.19]
[1755630756133,7.08180687,176.23,176.1,1.19]
[1755630756330,3.98180687,176.22,176.1,1.19]
[1755630756728,3.1,176.28,176.14,1.19]
[1755630757024,3.98842193,176.27,176.14,1.19]
[1755630757226,3.98842193,176.26,176.15,5.6771]
[1755630757423,3.98842193,176.25,176.14,1.19]
[1755630757728,7.08842193,176.24,176.14,1.19]
[1755630757934,3.98842193,176.23,176.14,1.19]
[1755630758922,3.1,176.24,176.14,1.19]
[1755630759126,4.00089301,176.23,176.14,1.19]
[1755630759328,3.1,176.24,176.14,1.19]
[1755630759530,4.00113675,176.23,176.14,1.19]
[1755630759722,3.1,176.24,176.15,5.6771]
[1755630759930,4.00131121,176.23,176.15,5.6771]
[1755630760133,3.1,176.24,176.15,5.6771]
[1755630760330,3.1,176.24,176.14,1.19]
[1755630760331,4.00235435,176.23,176.14,6.8674]
[1755630760532,3.1,176.24,176.14,6.8674]
[1755630760832,4.00257695,176.23,176.14,6.8674]
[1755630761129,3.1,176.24,176.14,6.8674]
[1755630761330,4.00257837,176.23,176.14,6.8674]
[1755630761531,3.1,176.24,176.14,6.8674]
[1755630761829,3.1,176.3,176.18,1.19]
[1755630762130,4.00398129,176.29,176.18,1.19]
[1755630762330,4.00398129,176.28,176.18,1.19]
[1755630762530,3.1,176.3,176.18,1.19]
[1755630762827,4.00318589,176.29,176.18,1.19]
[1755630763029,4.00318589,176.28,176.18,1.19]
[1755630763236,3.1,176.3,176.18,1.19]
[1755630763534,4.00588581,176.29,176.18,1.19]
[1755630763727,7.10588581,176.28,176.18,1.19]
[1755630763927,4.00588581,176.27,176.18,1.19]
[1755630764128,3.1,176.32,176.22,1.19]
[1755630764325,4.00698173,176.31,176.22,1.19]
[1755630764528,4.00698173,176.3,176.22,1.19]
[1755630764830,4.00698173,176.29,176.22,1.19]
[1755630765025,3.1,176.32,176.22,1.19]
[1755630765333,4.00631459,176.31,176.22,1.19]
[1755630765532,4.00631459,176.3,176.22,1.19]
[1755630765731,4.00631459,176.29,176.22,1.19]
[1755630765932,3.1,176.32,176.22,1.19]
[1755630766132,4.00588361,176.31,176.22,1.19]
[1755630766333,3.1,176.32,176.22,1.19]
[1755630766334,4.00588361,176.3,176.22,1.19]
[1755630766634,4.00588361,176.29,176.22,1.19]
[1755630766835,3.1,176.32,176.22,1.19]
[1755630767133,4.00519329,176.31,176.22,1.19]
[1755630767327,4.00519329,176.3,176.22,1.19]
[1755630767529,3.1,176.32,176.22,1.19]
[1755630767728,4.00425767,176.31,176.22,1.19]
[1755630767931,3.1,176.32,176.22,1.19]
[1755630768238,3.1,176.32,176.24,5.674]
[1755630768432,3.1,176.32,176.22,1.19]
[1755630769936,4.0013667,176.31,176.17,8.85293444]
[1755630770138,3.1,176.29,176.17,8.85293444]
[1755630770536,3.1,176.29,176.18,1.19]
[1755630770732,3.1,176.29,176.21,7.66293444]
[1755630770932,3.1,176.29,176.21,8.85293444]
[1755630771331,3.1,176.29,176.21,14.52793444]
[1755630771730,3.1,176.33,176.21,8.85293444]
[1755630772041,3.1,176.33,176.22,1.19]
[1755630772535,3.1,176.33,176.24,5.6742]
[1755630772741,3.1,176.33,176.22,1.19]
[1755630773533,3.1,176.33,176.24,5.6741]
[1755630773739,3.1,176.33,176.22,1.19]
[1755630774329,3.1,176.33,176.23,5.6745]
[1755630774535,3.1,176.33,176.25,7.66293444]
[1755630775340,3.1,176.33,176.22,1.19]
[1755630775540,3.1,176.33,176.13,159.1152]
[1755630775541,3.1,176.33,176.18,1.19]
[1755630775743,3.1,176.33,176.18,6.8661]
[1755630775938,3.1,176.33,176.18,1.19]
[1755630778343,3.1,176.33,176.21,1.18]
[1755630779745,3.1,176.33,176.17,8.84293444]
[1755630780552,3.07,176.31,176.17,1.18]
[1755630780952,3.07,176.3,176.17,1.18]
[1755630782449,3.07,176.3,176.18,5.676]
[1755630782856,3.07,176.3,176.21,1.18]
[1755630783549,3.07,176.3,176.21,6.8551]
[1755630783750,3.07,176.3,176.21,1.18]
[1755630783946,3.07,176.34,176.22,1.18]
[1755630784151,3.07,176.34,176.22,6.8548]
[1755630784756,3.07,176.34,176.23,5.6745]
[1755630784958,3.07,176.34,176.22,1.18]
[1755630785158,3.07,176.34,176.26,5.6734]
[1755630785361,3.07,176.34,176.25,1.18]
[1755630786551,3.07,176.34,176.25,6.8538]
[1755630786754,3.07,176.34,176.25,1.18]
[1755630787050,3.07,176.34,176.25,6.8539]
[1755630787250,595.5947194,176.37,176.25,8.84293444]
[1755630787450,214.2347194,176.37,176.25,8.84293444]
[1755630787656,214.2347194,176.37,176.26,5.6735]
[1755630787858,214.2347194,176.37,176.27,1.18]
[1755630789453,214.2347194,176.37,176.28,5.6729]
[1755630789660,214.2347194,176.37,176.27,1.18]
[1755630790160,3.07,176.38,176.3,6.8521]
[1755630790462,3.07,176.38,176.3,1.18]
[1755630790852,3.07,176.38,176.3,6.8522]
[1755630791564,3.07,176.38,176.3,1.18]
[1755630792156,3.07,176.38,176.26,8.84293444]
[1755630792358,3.07,176.38,176.27,1.18]
[1755630792760,3.07,176.38,176.28,5.6727]
[1755630793057,3.07,176.38,176.28,1.18]
[1755630793261,3.07,176.42,176.33,1.18]
[1755630794657,3.07,176.42,176.3,7.66293444]
[1755630794859,4.00264199,176.41,176.31,1.18]
[1755630795059,3.07,176.42,176.31,1.18]
[1755630795457,4.00571045,176.41,176.31,1.18]
[1755630795661,3.07,176.42,176.32,5.6716]
[1755630795863,4.00579824,176.41,176.31,1.18]
[1755630796062,3.07,176.42,176.31,1.18]
[1755630796270,3.07,176.4,176.31,1.18]
[1755630796464,3.07,176.38,176.27,1.18]
[1755630796665,4.00734709,176.37,176.27,1.18]
[1755630796968,3.07,176.38,176.27,1.18]
[1755630797268,3.07,176.36,176.27,1.18]
[1755630800469,3.07,176.34,176.24,299.04425447]
[1755630800659,4.00826304,176.33,176.24,299.04425447]
[1755630800866,3.07,176.34,176.24,299.04425447]
[1755630801068,4.00829752,176.33,176.24,299.04425447]
[1755630801267,7.08025214,176.32,176.24,299.04425447]
[1755630801570,3.07,176.32,176.24,299.04425447]
[1755630802868,4.01067764,176.31,176.24,299.04425447]
[1755630803171,3.07,176.32,176.24,299.04425447]
[1755630803372,4.01099535,176.31,176.24,299.04425447]
[1755630803570,3.07,176.32,176.24,299.04425447]
[1755630803769,3.07,176.32,176.25,1.18]
[1755630804470,3.07,176.32,176.24,299.04425447]
[1755630804670,4.01351231,176.31,176.24,299.04425447]
[1755630804873,3.07,176.32,176.24,299.04425447]
[1755630805173,4.01352694,176.31,176.24,151.52425447]
[1755630805374,3.07,176.32,176.24,151.52425447]
[1755630805375,4.01352694,176.3,176.24,151.52425447]
[1755630805676,3.07,176.28,176.24,151.52425447]
[1755630805864,6.13280955,176.34,176.24,151.52425447]
[1755630806067,3.07,176.26,176.24,151.52425447]
[1755630806464,7.66293444,176.36,176.24,151.52425447]
[1755630806465,3.07,176.33,176.24,151.52425447]
[1755630806665,4.01537282,176.32,176.24,151.52425447]
[1755630806866,4.01537282,176.31,176.24,151.52425447]
[1755630807170,3.07,176.29,176.19,147.36]
[1755630807363,3.07,176.27,176.19,147.36]
[1755630807565,3.07,176.25,176.16,1.18]
[1755630808168,2.91,176.28,176.16,1.18]
[1755630808373,4.0136808,176.27,176.18,5.6761]
[1755630808672,2.91,176.28,176.16,7.66293444]
[1755630808864,2.91,176.26,176.16,1.19]
[1755630809064,7.66293444,176.32,176.11,1.19]
[1755630809065,2.91,176.24,176.11,1.19]
[1755630809276,2.91,176.22,176.11,1.19]
[1755630810167,2.91,176.2,176.11,1.19]
[1755630810367,2.91,176.2,176.11,6.8684]
[1755630810567,2.91,176.2,176.11,1.19]
[1755630810974,2.91,176.2,176.12,5.6778]
[1755630811569,2.91,176.27,176.11,1.19]
[1755630811764,2.91,176.25,176.11,1.19]
[1755630811970,2.91,176.25,176.14,5.6773]
[1755630812172,2.91,176.25,176.14,1.19]
[1755630812571,2.91,176.25,176.15,5.6769]
[1755630812882,2.91,176.25,176.15,1.19]
[1755630813871,2.91,176.25,176.17,5.6765]
[1755630814078,2.91,176.25,176.15,1.19]
[1755630814773,2.91,176.25,176.16,5.6768]
[1755630815080,2.91,176.25,176.15,1.19]
[1755630815871,2.91,176.25,176.15,6.8669]
[1755630816376,2.91,176.25,176.16,5.6767]
[1755630816580,2.91,176.25,176.15,1.19]
[1755630817574,2.91,176.25,176.11,1.19]
[1755630817982,2.91,176.23,176.11,1.19]
[1755630818182,3.98912927,176.22,176.11,1.19]
[1755630818384,2.91,176.21,176.12,5.6781]
[1755630818584,2.91,176.21,176.11,1.19]
[1755630819984,2.91,176.25,176.11,1.19]
[1755630820178,2.91,176.25,176.14,5.6773]
[1755630820372,2.91,176.25,176.15,1.19]
[1755630821684,0.98778047,176.29,176.18,1.19]
[1755630821884,2.91,176.29,176.18,1.19]
[1755630823684,2.91,176.29,176.14,7.66293444]
[1755630823884,2.91,176.29,176.14,8.85293444]
[1755630824183,2.91,176.29,176.15,1.19]
[1755630824384,2.91,176.29,176.15,6.8671]
[1755630824584,2.91,176.29,176.15,1.19]
[1755630824978,2.91,176.27,176.11,6.8682]
[1755630825287,2.91,176.27,176.11,1.19]
[1755630825484,2.91,176.27,176.13,5.6776]
[1755630825686,2.91,176.27,176.14,1.19]
[1755630825990,2.91,176.27,176.14,6.8674]
[1755630826181,2.91,176.27,176.14,1.19]
[1755630826581,2.91,176.27,176.15,5.6769]
[1755630826781,2.91,176.27,176.16,1.19]
[1755630828988,2.91,176.27,176.12,1.19]
[1755630829188,2.91,176.25,176.12,1.19]
[1755630830694,2.91,176.23,176.08,8.85293444]
[1755630831495,2.91,176.23,176.09,1.19]
[1755630832096,2.91,176.23,176.1,1.19]
[1755630833496,2.91,176.23,176.15,1.19]
[1755630834492,2.91,176.3,176.15,1.19]
[1755630834689,0.98773842,176.31,176.15,1.19]
[1755630834690,2.91,176.28,176.15,1.19]
[1755630836505,2.91,176.26,176.15,1.19]
[1755630836898,2.91,176.24,176.1,1.19]
[1755630837306,2.91,176.22,176.1,1.19]
[1755630840298,2.91,176.22,176.12,5.6779]
[1755630840507,2.91,176.22,176.13,1.18]
[1755630841109,3.18,176.26,176.13,1.18]
[1755630841312,3.98481579,176.25,176.13,1.18]
[1755630841602,3.18,176.26,176.13,1.18]
[1755630841908,3.18,176.26,176.15,5.6771]
[1755630842107,3.18,176.26,176.16,1.18]
[1755630842304,3.98990806,176.25,176.16,1.18]
[1755630842607,3.18,176.26,176.16,1.18]
[1755630842808,3.99026238,176.25,176.16,1.18]
[1755630843007,3.18,176.26,176.16,1.18]
[1755630843209,3.98929726,176.25,176.16,1.18]
[1755630843404,3.18,176.26,176.16,1.18]
[1755630843610,3.99142825,176.25,176.16,1.18]
[1755630843807,3.18,176.26,176.16,1.18]
[1755630844007,3.18,176.26,176.17,1.18]
[1755630844203,3.18,176.29,176.17,1.18]
[1755630844404,3.99526985,176.28,176.17,1.18]
[1755630844710,3.18,176.29,176.19,1.18]
[1755630844910,3.18,176.27,176.19,1.18]
[1755630845500,3.18,176.27,176.15,7.66293444]
[1755630845706,3.99857451,176.26,176.15,8.84293444]
[1755630845902,3.99818717,176.25,176.15,8.84293444]
[1755630846102,3.18,176.27,176.15,8.84293444]
[1755630846312,3.99819567,176.26,176.15,8.84293444]
[1755630846511,3.99819567,176.25,176.15,8.84293444]
[1755630846705,3.18,176.27,176.15,8.84293444]
[1755630846910,3.9997023,176.26,176.15,8.84293444]
[1755630847106,7.1797023,176.25,176.15,8.84293444]
[1755630847309,4.00144257,176.24,176.15,8.84293444]
[1755630847509,3.18,176.25,176.15,8.84293444]
[1755630847712,4.00162355,176.24,176.15,8.84293444]
[1755630847913,3.18,176.25,176.15,8.84293444]
[1755630848206,4.00264441,176.24,176.15,8.84293444]
[1755630848412,3.18,176.25,176.15,8.84293444]
[1755630848615,4.00303899,176.24,176.15,8.84293444]
[1755630848907,3.18,176.25,176.15,8.84293444]
[1755630849113,4.00339823,176.24,176.15,8.84293444]
[1755630849311,3.18,176.25,176.15,8.84293444]
[1755630849510,4.00596368,176.24,176.15,14.52003444]
[1755630849713,3.18,176.25,176.15,14.52003444]